[Event "41st Jacques-Lemans-Open 2022"]
[Site "St. Veit/Glan"]
[Date "2022.07.10"]
[Round "3.33"]
[White "Bajorski, Marius"]
[Black "Schippel, Gert"]
[Result "1-0"]
[ECO "B40"]
[WhiteElo "1870"]
[BlackElo "2106"]
[Annotator "RC"]
[PlyCount "63"]
[EventDate "2022.07.09"]
[EventType "swiss"]
[EventCountry "AUT"]
[SourceTitle "playchess.com"]
[Source "ChessBase"]
[SourceQuality "1"]
[TimeControl "40/5400+30:1800+30"]

1. e4 {[%emt 0:00:02]} c5 {[%emt 0:00:16]} 2. Nf3 {[%emt 0:00:03]} e6 {[%emt 0:00:14]} 3. b3 {[%emt 0:00:04]} a6 {[%emt 0:01:01]} 4. Bb2 {[%emt 0:00:05]} Nc6 {[%emt 0:00:18]} 5. g3 {[%emt 0:00:52]} Nf6 {[%emt 0:07:41]} 6. e5 {[%emt 0:00:24]} Ng4 {[%emt 0:08:42]} 7. h3 {[%emt 0:03:57]} Nh6 {[%emt 0:00:09]} 8. g4 {[%emt 0:01:10]} f6 {[%emt 0:02:20]} 9. exf6 {[%emt 0:02:16]} gxf6 {[%emt 0:00:11]} 10. g5 {[%emt 0:01:59]} Ng8 {[%emt 0:01:40]} 11. Rg1 {[%emt 0:09:52]} Bg7 {[%emt 0:06:15]} 12. d3 {[%emt 0:15:46]} Qe7 {[%emt 0:03:14]} 13. Nc3 {[%emt 0:08:12]} b5 {[%emt 0:13:50]} 14. Qe2 {[%emt 0:04:27]} Bb7 {[%emt 0:16:18]} 15. Ne4 {[%emt 0:06:25]} fxg5 {[%emt 0:04:31]} 16. Nd6+ {[%emt 0:08:47]} Kf8 {[%emt 0:01:16]} 17. Bxg7+ {[%emt 0:01:58]} Qxg7 {[%emt 0:00:05]} 18. O-O-O {[%emt 0:02:21]} Rb8 {[%emt 0:11:10]} 19. Kb1 {[%emt 0:06:44]} h6 {[%emt 0:02:30]} 20. Qe3 {[%emt 0:02:07]} Nd4 {[%emt 0:03:20]} 21. Nxb7 {[%emt 0:01:31]} Qf6 {[%emt 0:05:18]} 22. Nxc5 {[%emt 0:03:40]} Qxf3 {[%emt 0:00:38]} 23. Bg2 {[%emt 0:00:26]} Qxe3 {[%emt 0:01:08]} 24. fxe3 {[%emt 0:00:05]} Ne2 {[%emt 0:02:01]} 25. Nxd7+ {[%emt 0:00:11]} Ke7 {[%emt 0:00:30]} 26. Nxb8 {[%emt 0:00:06]} Nf6 {[%emt 0:00:38]} 27. Nxa6 {[%emt 0:00:48]} Nd5 {[%emt 0:01:10]} 28. Bxd5 {[%emt 0:01:05]} exd5 {[%emt 0:00:02]} 29. Rgf1 {[%emt 0:00:22]} Nc3+ {[%emt 0:00:17]} 30. Kc1 {[%emt 0:00:43]} Nxd1 {[%emt 0:00:17]} 31. Kxd1 {[%emt 0:00:08]} Ra8 {[%emt 0:00:18]} 32. Nb4 {[%emt 0:01:17]} 1-0

[Event "41st Jacques-Lemans-Open 2022"]
[Site "St. Veit/Glan"]
[Date "2022.07.10"]
[Round "3.34"]
[White "Wendl, Philipp"]
[Black "Blasge, Tobias"]
[Result "0-1"]
[ECO "B11"]
[WhiteElo "2097"]
[BlackElo "1826"]
[Annotator "RC"]
[PlyCount "176"]
[EventDate "2022.07.09"]
[EventType "swiss"]
[EventCountry "AUT"]
[SourceTitle "playchess.com"]
[Source "ChessBase"]
[SourceQuality "1"]
[TimeControl "40/5400+30:1800+30"]

1. e4 {[%emt 0:00:03]} c6 {[%emt 0:00:04]} 2. Nf3 {[%emt 0:00:06]} d5 {[%emt 0:00:04]} 3. Nc3 {[%emt 0:00:03]} Bg4 {[%emt 0:00:05]} 4. h3 {[%emt 0:00:05]} Bxf3 {[%emt 0:00:04]} 5. Qxf3 {[%emt 0:00:04]} e6 {[%emt 0:00:04]} 6. g3 {[%emt 0:00:11]} Nf6 {[%emt 0:00:35]} 7. Bg2 {[%emt 0:00:10]} Bc5 {[%emt 0:00:05]} 8. O-O {[%emt 0:01:05]} O-O {[%emt 0:00:03]} 9. Qd1 {[%emt 0:06:10]} d4 {[%emt 0:06:51]} 10. Na4 {[%emt 0:05:57]} Be7 {[%emt 0:02:11]} 11. b3 {[%emt 0:00:25]} Nbd7 {[%emt 0:11:28]} 12. Nb2 {[%emt 0:03:49]} e5 {[%emt 0:04:45]} 13. f4 {[%emt 0:01:54]} Ba3 {[%emt 0:10:56]} 14. d3 {[%emt 0:20:55]} Re8 {[%emt 0:18:49]} 15. f5 b5 16. g4 {[%emt 0:02:30]} h6 {[%emt 0:03:42]} 17. Rb1 {[%emt 0:00:33]} Nh7 {[%emt 0:08:38]} 18. Qe1 {[%emt 0:01:57]} Be7 {[%emt 0:04:04]} 19. Nd1 {[%emt 0:04:31]} Bh4 {[%emt 0:03:46]} 20. Qe2 {[%emt 0:01:32]} a5 {[%emt 0:06:17]} 21. Nb2 {[%emt 0:11:03]} Nc5 {[%emt 0:02:33]} 22. Bd2 {[%emt 0:03:24]} Bg3 {[%emt 0:08:08]} 23. Qf3 {[%emt 0:02:22]} Qh4 {[%emt 0:00:54]} 24. Rfc1 {[%emt 0:11:48]} Ng5 {[%emt 0:01:09]} 25. Qf1 {[%emt 0:00:23]} Nd7 {[%emt 0:02:53]} 26. c4 {[%emt 0:06:44]} b4 {[%emt 0:00:33]} 27. c5 {[%emt 0:00:34]} Nf6 {[%emt 0:01:27]} 28. Bxg5 {[%emt 0:01:14]} hxg5 {[%emt 0:00:20]} 29. Qf3 {[%emt 0:00:46]} Bf4 {[%emt 0:00:42]} 30. Rc2 {[%emt 0:00:13]} Nd7 {[%emt 0:02:15]} 31. Ra1 {[%emt 0:04:32]} Reb8 {[%emt 0:00:39]} 32. Na4 {[%emt 0:01:09]} Rb5 {[%emt 0:01:20]} 33. Bf1 {[%emt 0:01:45]} Qh6 {[%emt 0:00:46]} 34. Rc4 {[%emt 0:00:16]} g6 {[%emt 0:00:38]} 35. Qg2 {[%emt 0:00:47]} Qh4 {[%emt 0:00:32]} 36. Be2 {[%emt 0:00:37]} Kg7 {[%emt 0:00:30]} 37. Rf1 {[%emt 0:00:59]} Qh8 {[%emt 0:00:34]} 38. Bf3 {[%emt 0:03:16]} Be3+ {[%emt 0:00:18]} 39. Kh1 {[%emt 0:00:56]} Bf4 {[%emt 0:00:20]} 40. Bd1 {[%emt 0:02:43]} Qh4 {[%emt 0:00:43]} 41. Rf3 {[%emt 0:08:08]} Rh8 {[%emt 0:13:07]} 42. Kg1 {[%emt 0:03:26]} gxf5 {[%emt 0:06:36]} 43. exf5 {[%emt 0:05:28]} e4 {[%emt 0:00:07]} 44. dxe4 {[%emt 0:01:13]} Ne5 {[%emt 0:00:11]} 45. Rxd4 {[%emt 0:04:30]} Nxf3+ {[%emt 0:05:32]} 46. Qxf3 {[%emt 0:00:09]} Qxh3 {[%emt 0:01:43]} 47. Qxh3 {[%emt 0:00:14]} Rxh3 {[%emt 0:00:01]} 48. Be2 {[%emt 0:05:10]} Be3+ {[%emt 0:05:16]} 49. Kg2 {[%emt 0:00:12]} Bxd4 {[%emt 0:00:03]} 50. Kxh3 {[%emt 0:00:04]} Rb8 {[%emt 0:00:24]} 51. Kg2 {[%emt 0:01:35]} Rd8 {[%emt 0:01:08]} 52. Ba6 {[%emt 0:01:07]} Rd7 {[%emt 0:01:39]} 53. Kf3 {[%emt 0:00:49]} Kf6 {[%emt 0:00:37]} 54. Bc8 {[%emt 0:01:49]} Rc7 {[%emt 0:00:27]} 55. Ba6 {[%emt 0:00:07]} Ke5 {[%emt 0:00:42]} 56. Bd3 {[%emt 0:01:43]} Bg1 {[%emt 0:00:38]} 57. Kg2 {[%emt 0:00:46]} Bd4 {[%emt 0:00:25]} 58. Kf3 {[%emt 0:00:05]} Bg1 {[%emt 0:00:33]} 59. Kg2 {[%emt 0:00:05]} Be3 {[%emt 0:00:26]} 60. Kf3 {[%emt 0:00:33]} Kd4 {[%emt 0:00:30]} 61. Bb1 {[%emt 0:03:45]} Bf4 {[%emt 0:00:30]} 62. Bc2 {[%emt 0:01:12]} Be5 {[%emt 0:00:33]} 63. Bd1 {[%emt 0:00:51]} f6 {[%emt 0:00:29]} 64. Be2 {[%emt 0:00:38]} Rh7 {[%emt 0:00:27]} 65. Bf1 {[%emt 0:00:46]} Rh2 {[%emt 0:00:27]} 66. Bg2 {[%emt 0:00:09]} Bf4 {[%emt 0:00:37]} 67. Nb6 {[%emt 0:00:16]} Kxc5 {[%emt 0:00:26]} 68. Nd7+ {[%emt 0:00:05]} Kd4 {[%emt 0:00:35]} 69. Nxf6 {[%emt 0:00:07]} Rh6 {[%emt 0:00:29]} 70. Nh5 {[%emt 0:00:13]} Be5 {[%emt 0:00:21]} 71. Bf1 {[%emt 0:01:34]} c5 {[%emt 0:00:36]} 72. Bb5 {[%emt 0:01:08]} Rb6 {[%emt 0:00:28]} 73. Be8 {[%emt 0:00:47]} c4 {[%emt 0:00:33]} 74. bxc4 {[%emt 0:00:11]} Kxc4 {[%emt 0:00:30]} 75. Ba4 {[%emt 0:00:15]} Kc3 {[%emt 0:00:36]} 76. Ke3 {[%emt 0:00:11]} b3 {[%emt 0:00:29]} 77. axb3 {[%emt 0:00:42]} Rxb3 {[%emt 0:00:16]} 78. Bxb3 {[%emt 0:00:01]} Kxb3 {[%emt 0:00:06]} 79. f6 {[%emt 0:00:23]} a4 {[%emt 0:00:28]} 80. f7 {[%emt 0:00:04]} Bd6 {[%emt 0:00:08]} 81. Ng3 {[%emt 0:00:32]} a3 {[%emt 0:00:55]} 82. Ne2 {[%emt 0:00:06]} Kb2 {[%emt 0:00:23]} 83. e5 {[%emt 0:00:55]} Bf8 {[%emt 0:00:53]} 84. Ke4 {[%emt 0:01:24]} a2 {[%emt 0:00:29]} 85. Kf5 {[%emt 0:00:05]} a1=Q {[%emt 0:00:15]} 86. Kxg5 {[%emt 0:00:05]} Qe1 {[%emt 0:00:36]} 87. Nd4 {[%emt 0:00:31]} Qxe5+ {[%emt 0:00:12]} 88. Nf5 {[%emt 0:00:04]} Qe6 {[%emt 0:00:58]} 0-1

[Event "41st Jacques-Lemans-Open 2022"]
[Site "St. Veit/Glan"]
[Date "2022.07.10"]
[Round "3.35"]
[White "Navaratnam, Rohan Shan Tze"]
[Black "Gockner, Martin"]
[Result "1-0"]
[ECO "E63"]
[WhiteElo "2071"]
[BlackElo "1879"]
[Annotator "NA RC"]
[PlyCount "91"]
[EventDate "2022.07.09"]
[EventType "swiss"]
[EventCountry "AUT"]
[SourceTitle "playchess.com"]
[Source "ChessBase"]
[SourceQuality "1"]
[TimeControl "40/5400+30:1800+30"]

1. d4 {[%emt 0:00:03]} Nf6 {[%emt 0:00:01]} 2. c4 {[%emt 0:00:08]} g6 {[%emt 0:00:02]} 3. g3 {[%emt 0:00:02]} Bg7 {[%emt 0:00:06]} 4. Bg2 {[%emt 0:00:05]} O-O {[%emt 0:00:06]} 5. Nf3 {[%emt 0:00:05]} d6 {[%emt 0:00:10]} 6. O-O {[%emt 0:00:07]} Nc6 {[%emt 0:00:21]} 7. Nc3 {[%emt 0:00:06]} a6 {[%emt 0:00:14]} 8. Re1 {[%emt 0:00:05]} Rb8 {[%emt 0:01:00]} 9. Rb1 {[%emt 0:00:17]} b5 {[%emt 0:01:42]} 10. cxb5 {[%emt 0:00:52]} axb5 {[%emt 0:00:20]} 11. b4 {[%emt 0:00:05]} e5 {[%emt 0:04:22]} 12. dxe5 {[%emt 0:00:10]} Nxe5 {[%emt 0:07:23]} 13. Nxe5 {[%emt 0:00:08]} dxe5 {[%emt 0:00:14]} 14. Bg5 {[%emt 0:00:06]} Bf5 {[%emt 0:06:28]} 15. Rc1 {[%emt 0:00:11]} h6 {[%emt 0:46:36]} 16. Qxd8 {[%emt 0:03:50]} Rfxd8 {[%emt 0:00:17]} 17. Be3 {[%emt 0:25:28]} e4 {[%emt 0:02:57]} 18. Bf4 {[%emt 0:02:13]} Rd7 {[%emt 0:03:57]} 19. f3 {[%emt 0:14:13]} exf3 {[%emt 0:03:40]} 20. Bxf3 {[%emt 0:00:13]} g5 {[%emt 0:02:12]} 21. Be5 {[%emt 0:01:10]} Ng4 {[%emt 0:02:16]} 22. Bxg7 {[%emt 0:01:31]} Kxg7 {[%emt 0:00:03]} 23. Bc6 {[%emt 0:01:19]} Rd4 {[%emt 0:01:39]} 24. Nxb5 {[%emt 0:02:25]} Rxb4 {[%emt 0:00:29]} 25. Nxc7 {[%emt 0:00:02]} Rb2 {[%emt 0:02:11]} 26. a4 {[%emt 0:03:02]} Ra2 {[%emt 0:01:18]} 27. Rc5 {[%emt 0:01:15]} Rb1 {[%emt 0:01:33]} 28. Rxb1 {[%emt 0:00:45]} Bxb1 {[%emt 0:00:02]} 29. h3 {[%emt 0:05:44]} Nf6 {[%emt 0:01:27]} 30. Re5 {[%emt 0:08:01]} Ra1 {[%emt 0:00:21]} 31. Kf2 {[%emt 0:00:51]} Bc2 {[%emt 0:03:44]} 32. a5 {[%emt 0:01:02]} Ba4 {[%emt 0:01:03]} 33. Bb7 {[%emt 0:02:15]} Nd7 {[%emt 0:03:30]} 34. Rd5 {[%emt 0:00:36]} Nf6 {[%emt 0:00:11]} 35. Rd4 {[%emt 0:01:20]} Bb3 {[%emt 0:03:07]} 36. a6 {[%emt 0:00:40]} Ra5 {[%emt 0:00:36]} 37. Rd2 {[%emt 0:05:55]} Bc4 {[%emt 0:01:27]} 38. Rc2 {[%emt 0:01:16]} Bd5 {[%emt 0:01:17]} 39. Bxd5 {[%emt 0:00:26]} Nxd5 {[%emt 0:00:01]} 40. Nxd5 {[%emt 0:00:01]} Rxd5 {[%emt 0:00:30]} 41. Ra2 {[%emt 0:30:02]} Rd8 {[%emt 0:30:08]} 42. a7 {[%emt 0:00:04]} Ra8 {[%emt 0:00:05]} 43. Ke3 {[%emt 0:00:09]} Kf6 {[%emt 0:00:06]} 44. Kd4 {[%emt 0:00:04]} h5 {[%emt 0:00:39]} 45. Kd5 {[%emt 0:00:24]} Kf5 {[%emt 0:00:44]} 46. Ra4 1-0

[Event "41st Jacques-Lemans-Open 2022"]
[Site "St. Veit/Glan"]
[Date "2022.07.10"]
[Round "3.36"]
[White "Gruenwald, Simon"]
[Black "Bethke, Robert"]
[Result "1/2-1/2"]
[ECO "C42"]
[WhiteElo "1762"]
[BlackElo "2070"]
[Annotator "RC"]
[PlyCount "110"]
[EventDate "2022.07.09"]
[EventType "swiss"]
[EventCountry "AUT"]
[SourceTitle "playchess.com"]
[Source "ChessBase"]
[SourceQuality "1"]
[TimeControl "40/5400+30:1800+30"]

1. e4 {[%emt 0:00:11]} e5 {[%emt 0:00:08]} 2. Nf3 {[%emt 0:01:26]} Nf6 {[%emt 0:00:06]} 3. Nxe5 {[%emt 0:02:39]} d6 {[%emt 0:00:53]} 4. Nf3 {[%emt 0:00:52]} Nxe4 {[%emt 0:00:04]} 5. Nc3 {[%emt 0:00:38]} Nxc3 {[%emt 0:00:07]} 6. dxc3 {[%emt 0:00:04]} Be7 {[%emt 0:00:05]} 7. Bd3 {[%emt 0:01:30]} Nc6 {[%emt 0:00:10]} 8. Bf4 {[%emt 0:02:12]} Be6 {[%emt 0:00:11]} 9. Nd4 {[%emt 0:02:40]} Nxd4 {[%emt 0:01:18]} 10. cxd4 {[%emt 0:01:18]} d5 {[%emt 0:00:56]} 11. c3 {[%emt 0:00:40]} c6 {[%emt 0:00:20]} 12. Qf3 {[%emt 0:10:17]} Qd7 {[%emt 0:01:12]} 13. h3 {[%emt 0:02:06]} O-O-O {[%emt 0:00:58]} 14. O-O-O {[%emt 0:00:49]} Bd6 {[%emt 0:07:29]} 15. Rhe1 {[%emt 0:04:11]} Rde8 {[%emt 0:00:59]} 16. Re2 {[%emt 0:04:16]} Qc7 {[%emt 0:17:41]} 17. Bxd6 {[%emt 0:02:27]} Qxd6 {[%emt 0:00:03]} 18. Rde1 {[%emt 0:04:49]} Kd7 {[%emt 0:00:18]} 19. Bf5 {[%emt 0:01:59]} g6 {[%emt 0:01:34]} 20. Bxe6+ {[%emt 0:00:53]} fxe6 {[%emt 0:00:07]} 21. Qg4 {[%emt 0:02:44]} Rhf8 {[%emt 0:00:32]} 22. g3 {[%emt 0:07:13]} a5 {[%emt 0:02:41]} 23. f4 {[%emt 0:02:32]} b5 {[%emt 0:02:32]} 24. Re5 {[%emt 0:02:51]} b4 {[%emt 0:03:42]} 25. c4 {[%emt 0:19:35]} dxc4 {[%emt 0:01:24]} 26. Rxa5 {[%emt 0:02:03]} Ra8 {[%emt 0:00:45]} 27. Qg5 {[%emt 0:02:15]} c3 {[%emt 0:22:48]} 28. bxc3 {[%emt 0:07:03]} bxc3 {[%emt 0:00:40]} 29. Qe5 {[%emt 0:00:31]} Rxa5 {[%emt 0:12:48]} 30. Qxa5 {[%emt 0:00:08]} Rb8 {[%emt 0:03:26]} 31. Qa7+ {[%emt 0:01:22]} Kc8 {[%emt 0:02:00]} 32. Qc5 {[%emt 0:00:30]} Kd7 {[%emt 0:05:25]} 33. Qxc3 {[%emt 0:04:07]} Qd5 {[%emt 0:00:45]} 34. Re2 {[%emt 0:03:35]} Qh1+ {[%emt 0:01:00]} 35. Kd2 {[%emt 0:01:18]} Rb1 {[%emt 0:01:00]} 36. Qc2 {[%emt 0:00:59]} Qg1 {[%emt 0:00:45]} 37. Re3 {[%emt 0:02:39]} Qf2+ {[%emt 0:06:22]} 38. Kd3 {[%emt 0:00:19]} Qf1+ {[%emt 0:00:14]} 39. Qe2 {[%emt 0:01:30]} Qxh3 {[%emt 0:03:30]} 40. g4 {[%emt 0:00:28]} Qh1 {[%emt 0:00:31]} 41. Rxe6 {[%emt 0:30:38]} Qd1+ {[%emt 0:32:06]} 42. Qxd1 {[%emt 0:00:00]} Rxd1+ {[%emt 0:00:00]} 43. Kc2 {[%emt 0:00:00]} Ra1 {[%emt 0:00:00]} 44. Rf6 {[%emt 0:00:00]} Rxa2+ {[%emt 0:00:00]} 45. Kd3 {[%emt 0:00:00]} Rh2 {[%emt 0:00:00]} 46. f5 {[%emt 0:00:00]} gxf5 {[%emt 0:00:00]} 47. gxf5 {[%emt 0:00:00]} h5 {[%emt 0:00:00]} 48. Rh6 {[%emt 0:00:00]} h4 {[%emt 0:00:00]} 49. Ke3 {[%emt 0:00:00]} h3 {[%emt 0:00:00]} 50. Kf3 {[%emt 0:00:00]} Rh1 {[%emt 0:00:00]} 51. Kg3 {[%emt 0:00:02]} Rg1+ {[%emt 0:00:00]} 52. Kf2 {[%emt 0:00:37]} Rh1 {[%emt 0:00:00]} 53. Kg3 {[%emt 0:00:08]} Rd1 {[%emt 0:00:00]} 54. Rxh3 {[%emt 0:00:39]} Rxd4 {[%emt 0:00:00]} 55. Rh7+ {[%emt 0:01:43]} Kd6 {[%emt 0:00:00]} 1/2-1/2

[Event "41st Jacques-Lemans-Open 2022"]
[Site "St. Veit/Glan"]
[Date "2022.07.11"]
[Round "4.1"]
[White "Bosiocic, Marin"]
[Black "Windhager, Hannes"]
[Result "1/2-1/2"]
[ECO "A06"]
[WhiteElo "2549"]
[BlackElo "2244"]
[Annotator "ChessBase"]
[PlyCount "135"]
[EventDate "2022.07.09"]
[EventType "swiss"]
[EventCountry "AUT"]
[SourceTitle "playchess.com"]
[Source "ChessBase"]
[SourceQuality "1"]
[TimeControl "40/5400+30:1800+30"]

1. Nf3 {[%emt 0:00:12]} d5 {[%emt 0:00:10]} 2. g3 {[%emt 0:00:11]} g6 {[%emt 0:00:21]} 3. Bg2 {[%emt 0:01:23]} Bg7 {[%emt 0:00:06]} 4. O-O {[%emt 0:00:11]} e5 {[%emt 0:00:19]} 5. d3 {[%emt 0:00:08]} Nc6 {[%emt 0:00:25]} 6. e4 {[%emt 0:01:05]} dxe4 {[%emt 0:00:25]} 7. dxe4 {[%emt 0:00:09]} Qxd1 {[%emt 0:00:18]} 8. Rxd1 {[%emt 0:00:10]} Bg4 {[%emt 0:00:25]} 9. c3 {[%emt 0:00:23]} Nf6 {[%emt 0:00:47]} 10. Re1 {[%emt 0:01:12]} h6 {[%emt 0:01:13]} 11. Nbd2 {[%emt 0:01:52]} Nd7 {[%emt 0:07:59]} 12. Bf1 {[%emt 0:03:15]} O-O {[%emt 0:01:58]} 13. b4 {[%emt 0:01:24]} Rfd8 {[%emt 0:08:06]} 14. a4 {[%emt 0:02:29]} a5 {[%emt 0:05:22]} 15. b5 {[%emt 0:00:27]} Ncb8 {[%emt 0:01:10]} 16. Ba3 {[%emt 0:02:00]} Nb6 {[%emt 0:07:37]} 17. Bc5 {[%emt 0:03:48]} N8d7 {[%emt 0:01:07]} 18. Be3 {[%emt 0:00:17]} Bf8 {[%emt 0:03:36]} 19. Be2 {[%emt 0:02:53]} Be6 {[%emt 0:03:04]} 20. Bd1 {[%emt 0:01:00]} f6 {[%emt 0:13:57]} 21. Nh4 {[%emt 0:00:28]} Bf7 {[%emt 0:02:41]} 22. Bb3 {[%emt 0:00:16]} Nc5 {[%emt 0:02:34]} 23. Bxc5 {[%emt 0:07:37]} Bxc5 {[%emt 0:00:06]} 24. Bxf7+ {[%emt 0:00:35]} Kxf7 {[%emt 0:00:05]} 25. Nb3 {[%emt 0:00:05]} Be7 {[%emt 0:03:36]} 26. Ng2 {[%emt 0:00:13]} Nc4 {[%emt 0:03:07]} 27. Ne3 {[%emt 0:02:56]} Nxe3 {[%emt 0:00:40]} 28. Rxe3 {[%emt 0:00:09]} b6 {[%emt 0:02:26]} 29. f4 {[%emt 0:06:40]} Bd6 {[%emt 0:06:31]} 30. Rf1 {[%emt 0:02:09]} Rd7 {[%emt 0:11:46]} 31. Rd3 {[%emt 0:04:48]} Rad8 {[%emt 0:00:42]} 32. Kg2 {[%emt 0:04:00]} exf4 {[%emt 0:04:08]} 33. gxf4 {[%emt 0:00:07]} Ba3 {[%emt 0:02:11]} 34. Rd4 {[%emt 0:04:35]} Rxd4 {[%emt 0:04:03]} 35. cxd4 {[%emt 0:00:09]} f5 {[%emt 0:01:34]} 36. e5 {[%emt 0:00:37]} Ke6 {[%emt 0:00:44]} 37. Ra1 {[%emt 0:01:31]} Bb4 {[%emt 0:00:56]} 38. Rc1 {[%emt 0:04:36]} Rd7 {[%emt 0:00:37]} 39. h4 {[%emt 0:00:11]} Kd5 {[%emt 0:01:04]} 40. Kf3 {[%emt 0:00:32]} Rg7 {[%emt 0:01:47]} 41. Rc6 {[%emt 0:41:08]} Be1 {[%emt 0:04:55]} 42. Na1 {[%emt 0:00:00]} Bd2 {[%emt 0:05:09]} 43. Nb3 {[%emt 0:00:00]} Be1 {[%emt 0:00:17]} 44. Ke2 {[%emt 0:00:00]} Bg3 {[%emt 0:07:23]} 45. Kd3 {[%emt 0:00:00]} Bxf4 {[%emt 0:01:07]} 46. Rf6 {[%emt 0:01:52]} Bg3 {[%emt 0:06:48]} 47. Nc1 {[%emt 0:00:15]} Bxh4 {[%emt 0:00:24]} 48. Rc6 {[%emt 0:00:04]} Bf2 {[%emt 0:03:27]} 49. Ne2 {[%emt 0:00:04]} Bxd4 {[%emt 0:00:19]} 50. Nxd4 {[%emt 0:00:33]} Kxe5 {[%emt 0:00:13]} 51. Ke3 {[%emt 0:06:33]} Kd5 {[%emt 0:02:05]} 52. Ne2 {[%emt 0:00:54]} g5 {[%emt 0:01:05]} 53. Kd3 {[%emt 0:02:19]} h5 {[%emt 0:01:50]} 54. Nd4 {[%emt 0:00:14]} Ke5 {[%emt 0:00:28]} 55. Ke3 {[%emt 0:00:41]} f4+ {[%emt 0:00:23]} 56. Kd3 {[%emt 0:00:04]} g4 {[%emt 0:00:43]} 57. Rh6 {[%emt 0:01:01]} Rg5 {[%emt 0:01:05]} 58. Nc6+ {[%emt 0:05:10]} Kd5 {[%emt 0:00:17]} 59. Ne7+ {[%emt 0:00:06]} Ke5 {[%emt 0:00:28]} 60. Ng6+ {[%emt 0:00:06]} Kf5 {[%emt 0:00:31]} 61. Nh4+ {[%emt 0:01:06]} Ke5 {[%emt 0:00:17]} 62. Ng6+ {[%emt 0:04:17]} Kf5 {[%emt 0:00:05]} 63. Ne7+ {[%emt 0:00:21]} Ke5 {[%emt 0:00:08]} 64. Nc6+ {[%emt 0:04:11]} Kd5 {[%emt 0:00:40]} 65. Nd4 {[%emt 0:01:19]} g3 {[%emt 0:00:50]} 66. Nf3 {[%emt 0:00:13]} g2 {[%emt 0:00:50]} 67. Ng1 {[%emt 0:00:05]} Kc5 68. Ke4 1/2-1/2

[Event "41st Jacques-Lemans-Open 2022"]
[Site "St. Veit/Glan"]
[Date "2022.07.11"]
[Round "4.2"]
[White "Riemelmoser, Franz"]
[Black "Rogic, Davor"]
[Result "1/2-1/2"]
[ECO "A28"]
[WhiteElo "2237"]
[BlackElo "2474"]
[Annotator "ChessBase"]
[PlyCount "23"]
[EventDate "2022.07.09"]
[EventType "swiss"]
[EventCountry "AUT"]
[SourceTitle "playchess.com"]
[Source "ChessBase"]
[SourceQuality "1"]
[TimeControl "40/5400+30:1800+30"]

1. c4 {[%emt 0:00:08]} e5 {[%emt 0:00:17]} 2. Nc3 {[%emt 0:00:11]} Nf6 {[%emt 0:00:20]} 3. Nf3 {[%emt 0:00:19]} Nc6 {[%emt 0:00:13]} 4. a3 {[%emt 0:00:43]} a5 {[%emt 0:02:02]} 5. e4 {[%emt 0:00:27]} d6 {[%emt 0:02:46]} 6. h3 {[%emt 0:00:28]} g6 {[%emt 0:05:20]} 7. d4 {[%emt 0:00:40]} Nd7 {[%emt 0:04:25]} 8. Bg5 {[%emt 0:03:10]} f6 {[%emt 0:01:32]} 9. Be3 {[%emt 0:00:19]} Bg7 {[%emt 0:01:13]} 10. dxe5 {[%emt 0:01:37]} Ndxe5 {[%emt 0:05:29]} 11. Nxe5 {[%emt 0:00:28]} fxe5 {[%emt 0:01:53]} 12. c5 {[%emt 0:03:01]} 1/2-1/2

[Event "41st Jacques-Lemans-Open 2022"]
[Site "St. Veit/Glan"]
[Date "2022.07.11"]
[Round "4.3"]
[White "Praznik, Niko"]
[Black "Miazhynski, Yuri"]
[Result "1/2-1/2"]
[ECO "A05"]
[WhiteElo "2325"]
[BlackElo "2166"]
[Annotator "ChessBase"]
[PlyCount "121"]
[EventDate "2022.07.09"]
[EventType "swiss"]
[EventCountry "AUT"]
[SourceTitle "playchess.com"]
[Source "ChessBase"]
[SourceQuality "1"]
[TimeControl "40/5400+30:1800+30"]

1. Nf3 {[%emt 0:00:44]} Nf6 {[%emt 0:01:05]} 2. c4 {[%emt 0:03:09]} g6 {[%emt 0:01:22]} 3. g3 {[%emt 0:02:19]} Bg7 {[%emt 0:01:11]} 4. Bg2 {[%emt 0:01:54]} O-O {[%emt 0:00:43]} 5. O-O {[%emt 0:00:06]} d5 {[%emt 0:01:10]} 6. cxd5 {[%emt 0:02:07]} Nxd5 {[%emt 0:00:07]} 7. d4 {[%emt 0:01:35]} Nc6 {[%emt 0:04:08]} 8. e4 {[%emt 0:05:22]} Nb6 {[%emt 0:00:43]} 9. d5 {[%emt 0:02:03]} Na5 {[%emt 0:06:39]} 10. Nc3 {[%emt 0:02:17]} c6 {[%emt 0:02:39]} 11. Re1 {[%emt 0:10:17]} Nac4 {[%emt 0:28:07]} 12. h3 {[%emt 0:19:07]} e6 {[%emt 0:08:58]} 13. dxc6 {[%emt 0:06:22]} Qxd1 {[%emt 0:01:09]} 14. Nxd1 {[%emt 0:02:37]} bxc6 {[%emt 0:01:02]} 15. Rb1 {[%emt 0:00:20]} Nd7 {[%emt 0:05:30]} 16. Ne3 {[%emt 0:06:01]} Ncb6 {[%emt 0:11:28]} 17. b3 {[%emt 0:03:21]} Ba6 {[%emt 0:04:26]} 18. Bf1 {[%emt 0:07:19]} Bxf1 {[%emt 0:01:25]} 19. Kxf1 {[%emt 0:00:16]} a5 {[%emt 0:03:15]} 20. Ba3 {[%emt 0:00:50]} Rfc8 {[%emt 0:00:12]} 21. Bd6 {[%emt 0:02:53]} Bc3 {[%emt 0:03:51]} 22. Re2 {[%emt 0:06:57]} Bb4 {[%emt 0:01:08]} 23. Rd1 {[%emt 0:01:17]} Bxd6 {[%emt 0:04:43]} 24. Rxd6 {[%emt 0:00:05]} a4 {[%emt 0:00:07]} 25. Rc2 {[%emt 0:03:15]} axb3 {[%emt 0:00:32]} 26. axb3 {[%emt 0:00:01]} c5 {[%emt 0:00:34]} 27. Nc4 {[%emt 0:02:39]} Nxc4 {[%emt 0:01:06]} 28. Rxd7 {[%emt 0:02:31]} Na5 {[%emt 0:02:04]} 29. Ng5 {[%emt 0:05:32]} Nxb3 {[%emt 0:00:13]} 30. Nxf7 {[%emt 0:00:04]} c4 {[%emt 0:02:21]} 31. Nd6 {[%emt 0:01:11]} Rd8 {[%emt 0:02:44]} 32. Rxd8+ {[%emt 0:00:05]} Rxd8 {[%emt 0:00:03]} 33. Nxc4 {[%emt 0:00:10]} Rd4 {[%emt 0:00:23]} 34. Ne5 {[%emt 0:01:36]} Rxe4 {[%emt 0:00:47]} 35. Rc8+ {[%emt 0:00:05]} Kg7 {[%emt 0:00:11]} 36. Rc7+ {[%emt 0:00:07]} Kf8 {[%emt 0:01:34]} 37. Nd7+ {[%emt 0:01:07]} Ke7 {[%emt 0:00:01]} 38. Nc5+ {[%emt 0:00:28]} Kd6 {[%emt 0:00:02]} 39. Nxe4+ {[%emt 0:00:11]} Kxc7 {[%emt 0:00:06]} 40. Ng5 {[%emt 0:00:02]} h6 {[%emt 0:00:28]} 41. Nxe6+ {[%emt 0:30:07]} Kd6 {[%emt 0:30:11]} 42. Nf4 {[%emt 0:00:00]} g5 {[%emt 0:00:00]} 43. Nd3 {[%emt 0:00:00]} Ke6 {[%emt 0:00:00]} 44. Ke2 {[%emt 0:00:00]} Kf5 {[%emt 0:00:00]} 45. Ke3 {[%emt 0:00:00]} Kf6 {[%emt 0:00:00]} 46. Nb4 {[%emt 0:00:00]} Kf5 {[%emt 0:00:00]} 47. Nc6 {[%emt 0:00:00]} Kf6 {[%emt 0:00:00]} 48. Nd4 {[%emt 0:00:00]} Nc5 {[%emt 0:00:00]} 49. Nf3 {[%emt 0:00:00]} Kf5 {[%emt 0:00:00]} 50. Nd4+ {[%emt 0:00:00]} Kf6 {[%emt 0:00:00]} 51. f4 {[%emt 0:00:00]} gxf4+ {[%emt 0:00:00]} 52. Kxf4 {[%emt 0:00:00]} Nd3+ {[%emt 0:00:00]} 53. Kg4 {[%emt 0:00:00]} Kg6 {[%emt 0:00:00]} 54. Nc6 {[%emt 0:00:00]} Nf2+ {[%emt 0:00:00]} 55. Kh4 {[%emt 0:00:00]} h5 {[%emt 0:00:06]} 56. Nd4 {[%emt 0:00:00]} Kh6 {[%emt 0:01:04]} 57. Nf5+ {[%emt 0:00:25]} Kg6 {[%emt 0:00:06]} 58. Ne7+ {[%emt 0:01:45]} Kh6 {[%emt 0:00:11]} 59. Nd5 {[%emt 0:00:06]} Ne4 {[%emt 0:00:14]} 60. Nf4 {[%emt 0:01:18]} Nf6 {[%emt 0:00:08]} 61. g4 1/2-1/2